{"text_format":"1","workbook":"xlsx","n_sheets":1,"sheets":["ق-عام"],"not_rendered":{"charts":0,"images":0,"macros":1,"external_links":2,"defined_names":456,"comments":0,"pivot_tables":0},"unopened":[],"bounds":{"document_bytes":16777216,"sheet_cells":100000,"rows_first":2000,"rows_last":500,"rows_between":2000,"halvings":0,"cell_chars":16384,"cell_head_chars":4096},"cells_cut":0,"cells_raw":0,"read":"whole","date_system":"1900"}

{"sheet":"ق-عام","index":0,"n_rows":171,"n_cols":36,"rows_kept":171,"cut":false,"hidden":false,"merged":[[0,0,0,1],[0,4,0,6]]}
["الرقم",null,"اللقب","الإسم","تاريخ الميلاد",null,null,"المكان","الولاية ","العنــــــــــــــــوان","نوع البكالوريا","رقم شهادة البكالوريا","السنة","تاريخ الحصول عليها","رقم البطاقة","إسم الأب","اسم ولقب الأم","إسم الأم","الفوج","المجموعة","الجنس","wilaya","A","تاريخ الميلاد بالفرنسية","الإسم بالفرنسية","اللقب بالفرنسية","حالة الطالب","سداسي 5","سداسي 6","عطلة أكاديمية",null,"تأكيد التسجيل","ترتيب أولي",null,null,"ملاحظــــــة ق عام"]
["ق ع","18/0001","طالب1","طالب1",9,"جانفي",1978,"الخروب","قسنطينة",null,"علوم",1995,"/17/",null,"حقوق1","الاب","الام","الام",15,"ج",null,"constantine","el khroub","1978-01-09","azzeddine","ghallab"]
["ق ع",2,"طالب2","طالب2",22,"أوت",1994,"مكان2","ولاية2",null,"آداب وفلسفة",4444445,"/17/",null,2,"الاب","الام","الام",2,"أ",null,"wilaya2","a2",null,"etude2","etude2"]
["ق ع",3,"طالب3","طالب3",13,"جوان",1984,"مكان3","ولاية3",null,"آداب وفلسفة",4444446,"/17/",null,3,"الاب","الام","الام",3,"أ",null,"wilaya3","a3",null,"etude3","etude3"]
["ق ع",4,"طالب4","طالب4",21,"فيفري",1997,"مكان4","ولاية4",null,"آداب وفلسفة",4444447,"/17/",null,4,"الاب","الام","الام",4,"أ",null,"wilaya4","a4",null,"etude4","etude4"]
["ق ع",5,"طالب5","طالب5",28,"أفريل",1999,"مكان5","ولاية5",null,"آداب وفلسفة",4444448,"/17/",null,5,"الاب","الام","الام",5,"أ",null,"wilaya5","a5",null,"etude5","etude5"]
["ق ع",6,"طالب6","طالب6",2,"جوان",1998,"مكان6","ولاية6",null,"آداب وفلسفة",4444449,"/17/",null,6,"الاب","الام","الام",6,"أ",null,"wilaya6","a6",null,"etude6","etude6"]
["ق ع",7,"طالب7","طالب7",6,"أفريل",1998,"مكان7","ولاية7",null,"آداب وفلسفة",4444450,"/17/",null,7,"الاب","الام","الام",7,"أ",null,"wilaya7","a7",null,"etude7","etude7"]
["ق ع",8,"طالب8","طالب8",6,"مارس",1982,"مكان8","ولاية8",null,"آداب وفلسفة",4444451,"/17/",null,8,"الاب","الام","الام",8,"أ",null,"wilaya8","a8",null,"etude8","etude8"]
["ق ع",9,"طالب9","طالب9",26,"أوت",1996,"مكان9","ولاية9",null,"آداب وفلسفة",4444452,"/17/",null,9,"الاب","الام","الام",9,"أ",null,"wilaya9","a9",null,"etude9","etude9"]
["ق ع",10,"طالب10","طالب10",16,"أفريل",1995,"مكان10","ولاية10",null,"آداب وفلسفة",4444453,"/17/",null,10,"الاب","الام","الام",10,"أ",null,"wilaya10","a10",null,"etude10","etude10"]
["ق ع",11,"طالب11","طالب11",4,"جوان",2000,"مكان11","ولاية11",null,"آداب وفلسفة",4444454,"/17/",null,11,"الاب","الام","الام",11,"أ",null,"wilaya11","a11",null,"etude11","etude11"]
["ق ع",12,"طالب12","طالب12",17,"نوفمبر",1998,"مكان12","ولاية12",null,"آداب وفلسفة",4444455,"/17/",null,12,"الاب","الام","الام",12,"أ",null,"wilaya12","a12",null,"etude12","etude12"]
["ق ع",13,"طالب13","طالب13",1,"جوان",1999,"مكان13","ولاية13",null,"آداب وفلسفة",4444456,"/17/",null,13,"الاب","الام","الام",13,"أ",null,"wilaya13","a13",null,"etude13","etude13"]
["ق ع",14,"طالب14","طالب14",14,"فيفري",1996,"مكان14","ولاية14",null,"آداب وفلسفة",4444457,"/17/",null,14,"الاب","الام","الام",14,"أ",null,"wilaya14","a14",null,"etude14","etude14"]
["ق ع",15,"طالب15","طالب15",24,"مارس",1999,"مكان15","ولاية15",null,"آداب وفلسفة",4444458,"/17/",null,15,"الاب","الام","الام",15,"أ",null,"wilaya15","a15",null,"etude15","etude15"]
["ق ع",16,"طالب16","طالب16",11,"ماي",1999,"مكان16","ولاية16",null,"آداب وفلسفة",4444459,"/17/",null,16,"الاب","الام","الام",16,"أ",null,"wilaya16","a16",null,"etude16","etude16"]
["ق ع",17,"طالب17","طالب17",9,"مارس",2000,"مكان17","ولاية17",null,"آداب وفلسفة",4444460,"/17/",null,17,"الاب","الام","الام",17,"أ",null,"wilaya17","a17",null,"etude17","etude17"]
["ق ع",18,"طالب18","طالب18",3,"أفريل",1994,"مكان18","ولاية18",null,"آداب وفلسفة",4444461,"/17/",null,18,"الاب","الام","الام",18,"أ",null,"wilaya18","a18","2001-01-18","etude18","etude18"]
["ق ع",19,"طالب19","طالب19",13,"أوت",1998,"مكان19","ولاية19",null,"آداب وفلسفة",4444462,"/17/",null,19,"الاب","الام","الام",19,"أ",null,"wilaya19","a19",null,"etude19","etude19"]
["ق ع",20,"طالب20","طالب20",29,"ماي",1997,"مكان20","ولاية20",null,"آداب وفلسفة",4444463,"/17/",null,20,"الاب","الام","الام",20,"أ",null,"wilaya20","a20",null,"etude20","etude20"]
["ق ع",21,"طالب21","طالب21",18,"ديسمبر",1997,"مكان21","ولاية21",null,"آداب وفلسفة",4444464,"/17/",null,21,"الاب","الام","الام",21,"أ",null,"wilaya21","a21",null,"etude21","etude21"]
["ق ع",22,"طالب22","طالب22",28,"أفريل",1997,"مكان22","ولاية22",null,"آداب وفلسفة",4444465,"/17/",null,22,"الاب","الام","الام",22,"أ",null,"wilaya22","a22",null,"etude22","etude22"]
["ق ع",23,"طالب23","طالب23",2,"أكتوبر",1999,"مكان23","ولاية23",null,"آداب وفلسفة",4444466,"/17/",null,23,"الاب","الام","الام",23,"أ",null,"wilaya23","a23",null,"etude23","etude23"]
["ق ع",24,"طالب24","طالب24",4,"ماي",1998,"مكان24","ولاية24",null,"آداب وفلسفة",4444467,"/17/",null,24,"الاب","الام","الام",24,"أ",null,"wilaya24","a24",null,"etude24","etude24"]
["ق ع",25,"طالب25","طالب25",10,"أكتوبر",1999,"مكان25","ولاية25",null,"آداب وفلسفة",4444468,"/17/",null,25,"الاب","الام","الام",25,"أ",null,"wilaya25","a25",null,"etude25","etude25"]
["ق ع",26,"طالب26","طالب26",5,"نوفمبر",1998,"مكان26","ولاية26",null,"آداب وفلسفة",4444469,"/17/",null,26,"الاب","الام","الام",26,"أ",null,"wilaya26","a26",null,"etude26","etude26"]
["ق ع",27,"طالب27","طالب27",7,"أوت",1997,"مكان27","ولاية27",null,"آداب وفلسفة",4444470,"/17/",null,27,"الاب","الام","الام",27,"أ",null,"wilaya27","a27",null,"etude27","etude27"]
["ق ع",28,"طالب28","طالب28",16,"جوان",1997,"مكان28","ولاية28",null,"آداب وفلسفة",4444471,"/17/",null,28,"الاب","الام","الام",28,"أ",null,"wilaya28","a28",null,"etude28","etude28"]
["ق ع",29,"طالب29","طالب29",18,"جوان",1998,"مكان29","ولاية29",null,"آداب وفلسفة",4444472,"/17/",null,29,"الاب","الام","الام",29,"أ",null,"wilaya29","a29",null,"etude29","etude29"]
["ق ع",30,"طالب30","طالب30",17,"ماي",1999,"مكان30","ولاية30",null,"آداب وفلسفة",4444473,"/17/",null,30,"الاب","الام","الام",30,"أ",null,"wilaya30","a30",null,"etude30","etude30"]
["ق ع",31,"طالب31","طالب31",24,"ديسمبر",1998,"مكان31","ولاية31",null,"آداب وفلسفة",4444474,"/17/",null,31,"الاب","الام","الام",31,"أ",null,"wilaya31","a31",null,"etude31","etude31"]
["ق ع",32,"طالب32","طالب32",20,"أوت",1997,"مكان32","ولاية32",null,"آداب وفلسفة",4444475,"/17/",null,32,"الاب","الام","الام",32,"أ",null,"wilaya32","a32",null,"etude32","etude32"]
["ق ع",33,"طالب33","طالب33",23,"جانفي",1999,"مكان33","ولاية33",null,"آداب وفلسفة",4444476,"/17/",null,33,"الاب","الام","الام",33,"أ",null,"wilaya33","a33",null,"etude33","etude33"]
["ق ع",34,"طالب34","طالب34",9,"نوفمبر",1998,"مكان34","ولاية34",null,"آداب وفلسفة",4444477,"/17/",null,34,"الاب","الام","الام",34,"أ",null,"wilaya34","a34",null,"etude34","etude34"]
["ق ع",35,"طالب35","طالب35",23,"ماي",1999,"مكان35","ولاية35",null,"آداب وفلسفة",4444478,"/17/",null,35,"الاب","الام","الام",35,"أ",null,"wilaya35","a35",null,"etude35","etude35"]
["ق ع",36,"طالب36","طالب36",26,"أفريل",1996,"مكان36","ولاية36",null,"آداب وفلسفة",4444479,"/17/",null,36,"الاب","الام","الام",36,"أ",null,"wilaya36","a36",null,"etude36","etude36"]
["ق ع",37,"طالب37","طالب37",22,"مارس",1994,"مكان37","ولاية37",null,"آداب وفلسفة",4444480,"/17/",null,37,"الاب","الام","الام",37,"أ",null,"wilaya37","a37",null,"etude37","etude37"]
["ق ع",38,"طالب38","طالب38",21,"أوت",1998,"مكان38","ولاية38",null,"آداب وفلسفة",4444481,"/17/",null,38,"الاب","الام","الام",38,"أ",null,"wilaya38","a38",null,"etude38","etude38"]
["ق ع",39,"طالب39","طالب39",25,"جويلية",1999,"مكان39","ولاية39",null,"آداب وفلسفة",4444482,"/17/",null,39,"الاب","الام","الام",39,"أ",null,"wilaya39","a39",null,"etude39","etude39"]
["ق ع",40,"طالب40","طالب40",10,"ماي",1999,"مكان40","ولاية40",null,"آداب وفلسفة",4444483,"/17/",null,40,"الاب","الام","الام",40,"أ",null,"wilaya40","a40",null,"etude40","etude40"]
["ق ع",41,"طالب41","طالب41",17,"أفريل",1999,"مكان41","ولاية41",null,"آداب وفلسفة",4444484,"/17/",null,41,"الاب","الام","الام",41,"أ",null,"wilaya41","a41",null,"etude41","etude41"]
["ق ع",42,"طالب42","طالب42",22,"ماي",1998,"مكان42","ولاية42",null,"آداب وفلسفة",4444485,"/17/",null,42,"الاب","الام","الام",42,"أ",null,"wilaya42","a42",null,"etude42","etude42"]
["ق ع",43,"طالب43","طالب43",18,"فيفري",1999,"مكان43","ولاية43",null,"آداب وفلسفة",4444486,"/17/",null,43,"الاب","الام","الام",43,"أ",null,"wilaya43","a43",null,"etude43","etude43"]
["ق ع",44,"طالب44","طالب44",3,"نوفمبر",1996,"مكان44","ولاية44",null,"آداب وفلسفة",4444487,"/17/",null,44,"الاب","الام","الام",44,"أ",null,"wilaya44","a44",null,"etude44","etude44"]
["ق ع",45,"طالب45","طالب45",18,"ديسمبر",1998,"مكان45","ولاية45",null,"آداب وفلسفة",4444488,"/17/",null,45,"الاب","الام","الام",45,"أ",null,"wilaya45","a45",null,"etude45","etude45"]
["ق ع",46,"طالب46","طالب46",7,"جوان",1998,"مكان46","ولاية46",null,"آداب وفلسفة",4444489,"/17/",null,46,"الاب","الام","الام",46,"أ",null,"wilaya46","a46",null,"etude46","etude46"]
["ق ع",47,"طالب47","طالب47",19,"أوت",1996,"مكان47","ولاية47",null,"آداب وفلسفة",4444490,"/17/",null,47,"الاب","الام","الام",47,"أ",null,"wilaya47","a47",null,"etude47","etude47"]
["ق ع",48,"طالب48","طالب48",19,"نوفمبر",1996,"مكان48","ولاية48",null,"آداب وفلسفة",4444491,"/17/",null,48,"الاب","الام","الام",48,"أ",null,"wilaya48","a48",null,"etude48","etude48"]
["ق ع",49,"طالب49","طالب49",24,"ديسمبر",1981,"مكان49","ولاية49",null,"آداب وفلسفة",4444492,"/17/",null,49,"الاب","الام","الام",49,"أ",null,"wilaya49","a49",null,"etude49","etude49"]
["ق ع",50,"طالب50","طالب50",23,"جانفي",1999,"مكان50","ولاية50",null,"آداب وفلسفة",4444493,"/17/",null,50,"الاب","الام","الام",50,"أ",null,"wilaya50","a50",null,"etude50","etude50"]
["ق ع",51,"طالب51","طالب51",null,"",1994,"مكان51","ولاية51",null,"آداب وفلسفة",4444494,"/17/",null,51,"الاب","الام","الام",51,"أ",null,"wilaya51","a51",null,"etude51","etude51"]
["ق ع",52,"طالب52","طالب52",6,"سبتمبر",1995,"مكان52","ولاية52",null,"آداب وفلسفة",4444495,"/17/",null,52,"الاب","الام","الام",52,"أ",null,"wilaya52","a52",null,"etude52","etude52"]
["ق ع",53,"طالب53","طالب53",21,"جوان",1999,"مكان53","ولاية53",null,"آداب وفلسفة",4444496,"/17/",null,53,"الاب","الام","الام",53,"أ",null,"wilaya53","a53",null,"etude53","etude53"]
["ق ع",54,"طالب54","طالب54",11,"جوان",1993,"مكان54","ولاية54",null,"آداب وفلسفة",4444497,"/17/",null,54,"الاب","الام","الام",54,"أ",null,"wilaya54","a54",null,"etude54","etude54"]
["ق ع",55,"طالب55","طالب55",10,"نوفمبر",1994,"مكان55","ولاية55",null,"آداب وفلسفة",4444498,"/17/",null,55,"الاب","الام","الام",55,"أ",null,"wilaya55","a55",null,"etude55","etude55"]
["ق ع",56,"طالب56","طالب56",15,"أوت",1997,"مكان56","ولاية56",null,"آداب وفلسفة",4444499,"/17/",null,56,"الاب","الام","الام",56,"أ",null,"wilaya56","a56",null,"etude56","etude56"]
["ق ع",57,"طالب57","طالب57",16,"سبتمبر",1997,"مكان57","ولاية57",null,"آداب وفلسفة",4444500,"/17/",null,57,"الاب","الام","الام",57,"أ",null,"wilaya57","a57",null,"etude57","etude57"]
["ق ع",58,"طالب58","طالب58",12,"جويلية",1999,"مكان58","ولاية58",null,"آداب وفلسفة",4444501,"/17/",null,58,"الاب","الام","الام",58,"أ",null,"wilaya58","a58",null,"etude58","etude58"]
["ق ع",59,"طالب59","طالب59",11,"مارس",1996,"مكان59","ولاية59",null,"آداب وفلسفة",4444502,"/17/",null,59,"الاب","الام","الام",59,"أ",null,"wilaya59","a59",null,"etude59","etude59"]
["ق ع",60,"طالب60","طالب60",1,"ماي",1997,"مكان60","ولاية60",null,"آداب وفلسفة",4444503,"/17/",null,60,"الاب","الام","الام",60,"أ",null,"wilaya60","a60",null,"etude60","etude60"]
["ق ع",61,"طالب61","طالب61",29,"أفريل",1999,"مكان61","ولاية61",null,"آداب وفلسفة",4444504,"/17/",null,61,"الاب","الام","الام",61,"أ",null,"wilaya61","a61",null,"etude61","etude61"]
["ق ع",62,"طالب62","طالب62",22,"ديسمبر",1995,"مكان62","ولاية62",null,"آداب وفلسفة",4444505,"/17/",null,62,"الاب","الام","الام",62,"أ",null,"wilaya62","a62",null,"etude62","etude62"]
["ق ع",63,"طالب63","طالب63",24,"جويلية",1997,"مكان63","ولاية63",null,"آداب وفلسفة",4444506,"/17/",null,63,"الاب","الام","الام",63,"أ",null,"wilaya63","a63",null,"etude63","etude63"]
["ق ع",64,"طالب64","طالب64",7,"جانفي",1999,"مكان64","ولاية64",null,"آداب وفلسفة",4444507,"/17/",null,64,"الاب","الام","الام",64,"أ",null,"wilaya64","a64",null,"etude64","etude64"]
["ق ع",65,"طالب65","طالب65",13,"جويلية",1998,"مكان65","ولاية65",null,"آداب وفلسفة",4444508,"/17/",null,65,"الاب","الام","الام",65,"أ",null,"wilaya65","a65",null,"etude65","etude65"]
["ق ع",66,"طالب66","طالب66",31,"أوت",1999,"مكان66","ولاية66",null,"آداب وفلسفة",4444509,"/17/",null,66,"الاب","الام","الام",66,"أ",null,"wilaya66","a66",null,"etude66","etude66"]
["ق ع",67,"طالب67","طالب67",24,"جانفي",1992,"مكان67","ولاية67",null,"آداب وفلسفة",4444510,"/17/",null,67,"الاب","الام","الام",67,"أ",null,"wilaya67","a67",null,"etude67","etude67"]
["ق ع",null,null,null,null,null,null,null,null,null,null,null,null,null,null,null,null,null,null,{"$f":"IFERROR(VLOOKUP(S69,#REF!,2,0),\"\")","v":""}]
["ق ع",null,null,null,null,null,null,null,null,null,null,null,null,null,null,null,null,null,null,{"$f":"IFERROR(VLOOKUP(S70,#REF!,2,0),\"\")","v":""}]
["ق ع",null,null,null,null,null,null,null,null,null,null,null,null,null,null,null,null,null,null,{"$f":"IFERROR(VLOOKUP(S71,#REF!,2,0),\"\")","v":""}]
["ق ع",null,null,null,null,null,null,null,null,null,null,null,null,null,null,null,null,null,null,{"$f":"IFERROR(VLOOKUP(S72,#REF!,2,0),\"\")","v":""}]
["ق ع",null,null,null,null,null,null,null,null,null,null,null,null,null,null,null,null,null,null,{"$f":"IFERROR(VLOOKUP(S73,#REF!,2,0),\"\")","v":""}]
["ق ع",null,null,null,null,null,null,null,null,null,null,null,null,null,null,null,null,null,null,{"$f":"IFERROR(VLOOKUP(S74,#REF!,2,0),\"\")","v":""}]
["ق ع",null,null,null,null,null,null,null,null,null,null,null,null,null,null,null,null,null,null,{"$f":"IFERROR(VLOOKUP(S75,#REF!,2,0),\"\")","v":""}]
["ق ع",null,null,null,null,null,null,null,null,null,null,null,null,null,null,null,null,null,null,{"$f":"IFERROR(VLOOKUP(S76,#REF!,2,0),\"\")","v":""}]
["ق ع",null,null,null,null,null,null,null,null,null,null,null,null,null,null,null,null,null,null,{"$f":"IFERROR(VLOOKUP(S77,#REF!,2,0),\"\")","v":""}]
["ق ع",null,null,null,null,null,null,null,null,null,null,null,null,null,null,null,null,null,null,{"$f":"IFERROR(VLOOKUP(S78,#REF!,2,0),\"\")","v":""}]
["ق ع",null,null,null,null,null,null,null,null,null,null,null,null,null,null,null,null,null,null,{"$f":"IFERROR(VLOOKUP(S79,#REF!,2,0),\"\")","v":""}]
["ق ع",null,null,null,null,null,null,null,null,null,null,null,null,null,null,null,null,null,null,{"$f":"IFERROR(VLOOKUP(S80,#REF!,2,0),\"\")","v":""}]
["ق ع",null,null,null,null,null,null,null,null,null,null,null,null,null,null,null,null,null,null,{"$f":"IFERROR(VLOOKUP(S81,#REF!,2,0),\"\")","v":""}]
["ق ع",null,null,null,null,null,null,null,null,null,null,null,null,null,null,null,null,null,null,{"$f":"IFERROR(VLOOKUP(S82,#REF!,2,0),\"\")","v":""}]
["ق ع",null,null,null,null,null,null,null,null,null,null,null,null,null,null,null,null,null,null,{"$f":"IFERROR(VLOOKUP(S83,#REF!,2,0),\"\")","v":""}]
["ق ع",null,null,null,null,null,null,null,null,null,null,null,null,null,null,null,null,null,null,{"$f":"IFERROR(VLOOKUP(S84,#REF!,2,0),\"\")","v":""}]
["ق ع",null,null,null,null,null,null,null,null,null,null,null,null,null,null,null,null,null,null,{"$f":"IFERROR(VLOOKUP(S85,#REF!,2,0),\"\")","v":""}]
["ق ع",null,null,null,null,null,null,null,null,null,null,null,null,null,null,null,null,null,null,{"$f":"IFERROR(VLOOKUP(S86,#REF!,2,0),\"\")","v":""}]
["ق ع",null,null,null,null,null,null,null,null,null,null,null,null,null,null,null,null,null,null,{"$f":"IFERROR(VLOOKUP(S87,#REF!,2,0),\"\")","v":""}]
["ق ع",null,null,null,null,null,null,null,null,null,null,null,null,null,null,null,null,null,null,{"$f":"IFERROR(VLOOKUP(S88,#REF!,2,0),\"\")","v":""}]
["ق ع",null,null,null,null,null,null,null,null,null,null,null,null,null,null,null,null,null,null,{"$f":"IFERROR(VLOOKUP(S89,#REF!,2,0),\"\")","v":""}]
["ق ع",null,null,null,null,null,null,null,null,null,null,null,null,null,null,null,null,null,null,{"$f":"IFERROR(VLOOKUP(S90,#REF!,2,0),\"\")","v":""}]
["ق ع",null,null,null,null,null,null,null,null,null,null,null,null,null,null,null,null,null,null,{"$f":"IFERROR(VLOOKUP(S91,#REF!,2,0),\"\")","v":""}]
["ق ع",null,null,null,null,null,null,null,null,null,null,null,null,null,null,null,null,null,null,{"$f":"IFERROR(VLOOKUP(S92,#REF!,2,0),\"\")","v":""}]
["ق ع",null,null,null,null,null,null,null,null,null,null,null,null,null,null,null,null,null,null,{"$f":"IFERROR(VLOOKUP(S93,#REF!,2,0),\"\")","v":""}]
["ق ع",null,null,null,null,null,null,null,null,null,null,null,null,null,null,null,null,null,null,{"$f":"IFERROR(VLOOKUP(S94,#REF!,2,0),\"\")","v":""}]
["ق ع",null,null,null,null,null,null,null,null,null,null,null,null,null,null,null,null,null,null,{"$f":"IFERROR(VLOOKUP(S95,#REF!,2,0),\"\")","v":""}]
["ق ع",null,null,null,null,null,null,null,null,null,null,null,null,null,null,null,null,null,null,{"$f":"IFERROR(VLOOKUP(S96,#REF!,2,0),\"\")","v":""}]
["ق ع",null,null,null,null,null,null,null,null,null,null,null,null,null,null,null,null,null,null,{"$f":"IFERROR(VLOOKUP(S97,#REF!,2,0),\"\")","v":""}]
["ق ع",null,null,null,null,null,null,null,null,null,null,null,null,null,null,null,null,null,null,{"$f":"IFERROR(VLOOKUP(S98,#REF!,2,0),\"\")","v":""}]
["ق ع",null,null,null,null,null,null,null,null,null,null,null,null,null,null,null,null,null,null,{"$f":"IFERROR(VLOOKUP(S99,#REF!,2,0),\"\")","v":""}]
["ق ع",null,null,null,null,null,null,null,null,null,null,null,null,null,null,null,null,null,null,{"$f":"IFERROR(VLOOKUP(S100,#REF!,2,0),\"\")","v":""}]
["ق ع",null,null,null,null,null,null,null,null,null,null,null,null,null,null,null,null,null,null,{"$f":"IFERROR(VLOOKUP(S101,#REF!,2,0),\"\")","v":""}]
["ق ع",null,null,null,null,null,null,null,null,null,null,null,null,null,null,null,null,null,null,{"$f":"IFERROR(VLOOKUP(S102,#REF!,2,0),\"\")","v":""}]
["ق ع",null,null,null,null,null,null,null,null,null,null,null,null,null,null,null,null,null,null,{"$f":"IFERROR(VLOOKUP(S103,#REF!,2,0),\"\")","v":""}]
["ق ع",null,null,null,null,null,null,null,null,null,null,null,null,null,null,null,null,null,null,{"$f":"IFERROR(VLOOKUP(S104,#REF!,2,0),\"\")","v":""}]
["ق ع",null,null,null,null,null,null,null,null,null,null,null,null,null,null,null,null,null,null,{"$f":"IFERROR(VLOOKUP(S105,#REF!,2,0),\"\")","v":""}]
["ق ع",null,null,null,null,null,null,null,null,null,null,null,null,null,null,null,null,null,null,{"$f":"IFERROR(VLOOKUP(S106,#REF!,2,0),\"\")","v":""}]
["ق ع",null,null,null,null,null,null,null,null,null,null,null,null,null,null,null,null,null,null,{"$f":"IFERROR(VLOOKUP(S107,#REF!,2,0),\"\")","v":""}]
["ق ع",null,null,null,null,null,null,null,null,null,null,null,null,null,null,null,null,null,null,{"$f":"IFERROR(VLOOKUP(S108,#REF!,2,0),\"\")","v":""}]
["ق ع",null,null,null,null,null,null,null,null,null,null,null,null,null,null,null,null,null,null,{"$f":"IFERROR(VLOOKUP(S109,#REF!,2,0),\"\")","v":""}]
["ق ع",null,null,null,null,null,null,null,null,null,null,null,null,null,null,null,null,null,null,{"$f":"IFERROR(VLOOKUP(S110,#REF!,2,0),\"\")","v":""}]
["ق ع",null,null,null,null,null,null,null,null,null,null,null,null,null,null,null,null,null,null,{"$f":"IFERROR(VLOOKUP(S111,#REF!,2,0),\"\")","v":""}]
["ق ع",null,null,null,null,null,null,null,null,null,null,null,null,null,null,null,null,null,null,{"$f":"IFERROR(VLOOKUP(S112,#REF!,2,0),\"\")","v":""}]
["ق ع",null,null,null,null,null,null,null,null,null,null,null,null,null,null,null,null,null,null,{"$f":"IFERROR(VLOOKUP(S113,#REF!,2,0),\"\")","v":""}]
["ق ع",null,null,null,null,null,null,null,null,null,null,null,null,null,null,null,null,null,null,{"$f":"IFERROR(VLOOKUP(S114,#REF!,2,0),\"\")","v":""}]
["ق ع",null,null,null,null,null,null,null,null,null,null,null,null,null,null,null,null,null,null,{"$f":"IFERROR(VLOOKUP(S115,#REF!,2,0),\"\")","v":""}]
["ق ع",null,null,null,null,null,null,null,null,null,null,null,null,null,null,null,null,null,null,{"$f":"IFERROR(VLOOKUP(S116,#REF!,2,0),\"\")","v":""}]
["ق ع",null,null,null,null,null,null,null,null,null,null,null,null,null,null,null,null,null,null,{"$f":"IFERROR(VLOOKUP(S117,#REF!,2,0),\"\")","v":""}]
["ق ع",null,null,null,null,null,null,null,null,null,null,null,null,null,null,null,null,null,null,{"$f":"IFERROR(VLOOKUP(S118,#REF!,2,0),\"\")","v":""}]
["ق ع",null,null,null,null,null,null,null,null,null,null,null,null,null,null,null,null,null,null,{"$f":"IFERROR(VLOOKUP(S119,#REF!,2,0),\"\")","v":""}]
["ق ع",null,null,null,null,null,null,null,null,null,null,null,null,null,null,null,null,null,null,{"$f":"IFERROR(VLOOKUP(S120,#REF!,2,0),\"\")","v":""}]
["ق ع",null,null,null,null,null,null,null,null,null,null,null,null,null,null,null,null,null,null,{"$f":"IFERROR(VLOOKUP(S121,#REF!,2,0),\"\")","v":""}]
["ق ع",null,null,null,null,null,null,null,null,null,null,null,null,null,null,null,null,null,null,{"$f":"IFERROR(VLOOKUP(S122,#REF!,2,0),\"\")","v":""}]
["ق ع",null,null,null,null,null,null,null,null,null,null,null,null,null,null,null,null,null,null,{"$f":"IFERROR(VLOOKUP(S123,#REF!,2,0),\"\")","v":""}]
["ق ع",null,null,null,null,null,null,null,null,null,null,null,null,null,null,null,null,null,null,{"$f":"IFERROR(VLOOKUP(S124,#REF!,2,0),\"\")","v":""}]
["ق ع",null,null,null,null,null,null,null,null,null,null,null,null,null,null,null,null,null,null,{"$f":"IFERROR(VLOOKUP(S125,#REF!,2,0),\"\")","v":""}]
["ق ع",null,null,null,null,null,null,null,null,null,null,null,null,null,null,null,null,null,null,{"$f":"IFERROR(VLOOKUP(S126,#REF!,2,0),\"\")","v":""}]
["ق ع",null,null,null,null,null,null,null,null,null,null,null,null,null,null,null,null,null,null,{"$f":"IFERROR(VLOOKUP(S127,#REF!,2,0),\"\")","v":""}]
["ق ع",null,null,null,null,null,null,null,null,null,null,null,null,null,null,null,null,null,null,{"$f":"IFERROR(VLOOKUP(S128,#REF!,2,0),\"\")","v":""}]
["ق ع",null,null,null,null,null,null,null,null,null,null,null,null,null,null,null,null,null,null,{"$f":"IFERROR(VLOOKUP(S129,#REF!,2,0),\"\")","v":""}]
["ق ع",null,null,null,null,null,null,null,null,null,null,null,null,null,null,null,null,null,null,{"$f":"IFERROR(VLOOKUP(S130,#REF!,2,0),\"\")","v":""}]
["ق ع",null,null,null,null,null,null,null,null,null,null,null,null,null,null,null,null,null,null,{"$f":"IFERROR(VLOOKUP(S131,#REF!,2,0),\"\")","v":""}]
["ق ع",null,null,null,null,null,null,null,null,null,null,null,null,null,null,null,null,null,null,{"$f":"IFERROR(VLOOKUP(S132,#REF!,2,0),\"\")","v":""}]
["ق ع",null,null,null,null,null,null,null,null,null,null,null,null,null,null,null,null,null,null,{"$f":"IFERROR(VLOOKUP(S133,#REF!,2,0),\"\")","v":""}]
["ق ع",null,null,null,null,null,null,null,null,null,null,null,null,null,null,null,null,null,null,{"$f":"IFERROR(VLOOKUP(S134,#REF!,2,0),\"\")","v":""}]
["ق ع",null,null,null,null,null,null,null,null,null,null,null,null,null,null,null,null,null,null,{"$f":"IFERROR(VLOOKUP(S135,#REF!,2,0),\"\")","v":""}]
["ق ع",null,null,null,null,null,null,null,null,null,null,null,null,null,null,null,null,null,null,{"$f":"IFERROR(VLOOKUP(S136,#REF!,2,0),\"\")","v":""}]
["ق ع",null,null,null,null,null,null,null,null,null,null,null,null,null,null,null,null,null,null,{"$f":"IFERROR(VLOOKUP(S137,#REF!,2,0),\"\")","v":""}]
["ق ع",null,null,null,null,null,null,null,null,null,null,null,null,null,null,null,null,null,null,{"$f":"IFERROR(VLOOKUP(S138,#REF!,2,0),\"\")","v":""}]
["ق ع",null,null,null,null,null,null,null,null,null,null,null,null,null,null,null,null,null,null,{"$f":"IFERROR(VLOOKUP(S139,#REF!,2,0),\"\")","v":""}]
["ق ع",null,null,null,null,null,null,null,null,null,null,null,null,null,null,null,null,null,null,{"$f":"IFERROR(VLOOKUP(S140,#REF!,2,0),\"\")","v":""}]
["ق ع",null,null,null,null,null,null,null,null,null,null,null,null,null,null,null,null,null,null,{"$f":"IFERROR(VLOOKUP(S141,#REF!,2,0),\"\")","v":""}]
["ق ع",null,null,null,null,null,null,null,null,null,null,null,null,null,null,null,null,null,null,{"$f":"IFERROR(VLOOKUP(S142,#REF!,2,0),\"\")","v":""}]
["ق ع",null,null,null,null,null,null,null,null,null,null,null,null,null,null,null,null,null,null,{"$f":"IFERROR(VLOOKUP(S143,#REF!,2,0),\"\")","v":""}]
["ق ع",null,null,null,null,null,null,null,null,null,null,null,null,null,null,null,null,null,null,{"$f":"IFERROR(VLOOKUP(S144,#REF!,2,0),\"\")","v":""}]
["ق ع",null,null,null,null,null,null,null,null,null,null,null,null,null,null,null,null,null,null,{"$f":"IFERROR(VLOOKUP(S145,#REF!,2,0),\"\")","v":""}]
["ق ع",null,null,null,null,null,null,null,null,null,null,null,null,null,null,null,null,null,null,{"$f":"IFERROR(VLOOKUP(S146,#REF!,2,0),\"\")","v":""}]
["ق ع",null,null,null,null,null,null,null,null,null,null,null,null,null,null,null,null,null,null,{"$f":"IFERROR(VLOOKUP(S147,#REF!,2,0),\"\")","v":""}]
["ق ع",null,null,null,null,null,null,null,null,null,null,null,null,null,null,null,null,null,null,{"$f":"IFERROR(VLOOKUP(S148,#REF!,2,0),\"\")","v":""}]
["ق ع",null,null,null,null,null,null,null,null,null,null,null,null,null,null,null,null,null,null,{"$f":"IFERROR(VLOOKUP(S149,#REF!,2,0),\"\")","v":""}]
["ق ع",null,null,null,null,null,null,null,null,null,null,null,null,null,null,null,null,null,null,{"$f":"IFERROR(VLOOKUP(S150,#REF!,2,0),\"\")","v":""}]
["ق ع",null,null,null,null,null,null,null,null,null,null,null,null,null,null,null,null,null,null,{"$f":"IFERROR(VLOOKUP(S151,#REF!,2,0),\"\")","v":""}]
["ق ع",null,null,null,null,null,null,null,null,null,null,null,null,null,null,null,null,null,null,{"$f":"IFERROR(VLOOKUP(S152,#REF!,2,0),\"\")","v":""}]
["ق ع",null,null,null,null,null,null,null,null,null,null,null,null,null,null,null,null,null,null,{"$f":"IFERROR(VLOOKUP(S153,#REF!,2,0),\"\")","v":""}]
["ق ع",null,null,null,null,null,null,null,null,null,null,null,null,null,null,null,null,null,null,{"$f":"IFERROR(VLOOKUP(S154,#REF!,2,0),\"\")","v":""}]
["ق ع",null,null,null,null,null,null,null,null,null,null,null,null,null,null,null,null,null,null,{"$f":"IFERROR(VLOOKUP(S155,#REF!,2,0),\"\")","v":""}]
["ق ع",null,null,null,null,null,null,null,null,null,null,null,null,null,null,null,null,null,null,{"$f":"IFERROR(VLOOKUP(S156,#REF!,2,0),\"\")","v":""}]
["ق ع",null,null,null,null,null,null,null,null,null,null,null,null,null,null,null,null,null,null,{"$f":"IFERROR(VLOOKUP(S157,#REF!,2,0),\"\")","v":""}]
["ق ع",null,null,null,null,null,null,null,null,null,null,null,null,null,null,null,null,null,null,{"$f":"IFERROR(VLOOKUP(S158,#REF!,2,0),\"\")","v":""}]
["ق ع",null,null,null,null,null,null,null,null,null,null,null,null,null,null,null,null,null,null,{"$f":"IFERROR(VLOOKUP(S159,#REF!,2,0),\"\")","v":""}]
["ق ع",null,null,null,null,null,null,null,null,null,null,null,null,null,null,null,null,null,null,{"$f":"IFERROR(VLOOKUP(S160,#REF!,2,0),\"\")","v":""}]
["ق ع",null,null,null,null,null,null,null,null,null,null,null,null,null,null,null,null,null,null,{"$f":"IFERROR(VLOOKUP(S161,#REF!,2,0),\"\")","v":""}]
["ق ع",null,null,null,null,null,null,null,null,null,null,null,null,null,null,null,null,null,null,{"$f":"IFERROR(VLOOKUP(S162,#REF!,2,0),\"\")","v":""}]
["ق ع",null,null,null,null,null,null,null,null,null,null,null,null,null,null,null,null,null,null,{"$f":"IFERROR(VLOOKUP(S163,#REF!,2,0),\"\")","v":""}]
["ق ع",null,null,null,null,null,null,null,null,null,null,null,null,null,null,null,null,null,null,{"$f":"IFERROR(VLOOKUP(S164,#REF!,2,0),\"\")","v":""}]
["ق ع",null,null,null,null,null,null,null,null,null,null,null,null,null,null,null,null,null,null,{"$f":"IFERROR(VLOOKUP(S165,#REF!,2,0),\"\")","v":""}]
["ق ع",null,null,null,null,null,null,null,null,null,null,null,null,null,null,null,null,null,null,{"$f":"IFERROR(VLOOKUP(S166,#REF!,2,0),\"\")","v":""}]
["ق ع",null,null,null,null,null,null,null,null,null,null,null,null,null,null,null,null,null,null,{"$f":"IFERROR(VLOOKUP(S167,#REF!,2,0),\"\")","v":""}]
["ق ع",null,null,null,null,null,null,null,null,null,null,null,null,null,null,null,null,null,null,{"$f":"IFERROR(VLOOKUP(S168,#REF!,2,0),\"\")","v":""}]
["ق ع",null,null,null,null,null,null,null,null,null,null,null,null,null,null,null,null,null,null,{"$f":"IFERROR(VLOOKUP(S169,#REF!,2,0),\"\")","v":""}]
["ق ع",null,null,null,null,null,null,null,null,null,null,null,null,null,null,null,null,null,null,{"$f":"IFERROR(VLOOKUP(S170,#REF!,2,0),\"\")","v":""}]
["ق ع",null,null,null,null,null,null,null,null,null,null,null,null,null,null,null,null,null,null,{"$f":"IFERROR(VLOOKUP(S171,#REF!,2,0),\"\")","v":""}]